{"text_format":"1","workbook":"xlsx","n_sheets":7,"sheets":["実績報告書","別添","職員表","実績報告書 (記載例)","別添 (記載例)","職員表 （記載例)","計算用"],"not_rendered":{"charts":0,"images":0,"macros":1,"external_links":1,"defined_names":8,"comments":2,"pivot_tables":0},"unopened":[],"bounds":{"document_bytes":16777216,"sheet_cells":100000,"rows_first":2000,"rows_last":500,"rows_between":2000,"halvings":0,"cell_chars":16384,"cell_head_chars":4096},"cells_cut":0,"cells_raw":0,"read":"whole","date_system":"1900"}

{"sheet":"実績報告書","index":0,"n_rows":38,"n_cols":39,"rows_kept":38,"cut":false,"hidden":false,"merged":[[22,4,22,27],[30,19,31,29],[37,28,37,37],[36,28,36,37],[35,28,35,37],[34,28,34,37],[33,28,33,37],[32,29,32,37],[34,20,34,26],[35,20,35,26],[36,20,37,22],[36,24,36,27],[37,24,37,27],[32,20,33,27],[22,28,22,32],[31,2,31,14],[20,28,20,32],[19,4,19,27],[20,4,20,27],[21,4,21,27],[21,28,21,32],[17,4,17,22],[18,4,18,27],[18,28,18,32],[19,28,19,32],[15,1,15,9],[15,10,15,17],[4,0,4,9],[6,22,6,36],[12,1,12,37],[10,0,10,38],[2,35,2,36],[2,32,2,33],[2,29,2,30],[7,22,7,36],[8,22,8,36]]}
[null,null,null,null,null,null,null,null,null,null,null,null,null,null,null,null,null,null,null,null,null,null,null,null,null,null,null,null,null,null,null,null,null,null,null,null,null,null,"（様式１０）"]
[]
[null,null,null,null,null,null,null,null,null,null,null,null,null,null,null,null,null,null,null,null,null,null,null,null,null,null,null,null,"　　令和",null,null,"年",null,null,"月",null,null,"日"]
[]
["福井県知事　杉本　達治",null,null,null,null,null,null,null,null,null,"様"]
[]
[null,null,null,null,null,null,null,null,null,null,null,null,null,null,null,null,null,null,null,null,null,"（所在地）"]
[null,null,null,null,null,null,null,null,null,null,null,null,null,null,null,null,null,null,null,null,null,"（法人名）"]
[null,null,null,null,null,null,null,null,null,null,null,null,null,null,null,null,null,null,null,null,null,"（役職・代表者名）",null,null,null,null,null,null,null,null,null,null,null,null,null,null,null,"印"]
[]
["令和２年度福井県新型コロナウイルス感染症緊急包括支援事業補助金\n（児童福祉施設等従事者への慰労金支給事業）実績報告書"]
[]
[null,"　令和　年　月　日付け福井県指令  第　　　号で交付決定を受けた令和２年度福井県新型コロナウイルス感染症緊急包括支援事業（児童福祉施設等従事者への慰労金支給事業）が完了したので、関係書類を添えて、下記のとおり報告します。"]
[]
[]
[null,"　　実　績　額　：　",null,null,null,null,null,null,null,null,{"$f":"別添!K15","v":0},null,null,null,null,null,null,null,"円"]
[]
[null,"（内訳）"]
[null,null,1,null,"対象者のうち、現職者数",null,null,null,null,null,null,null,null,null,null,null,null,null,null,null,null,null,null,null,null,null,null,null,{"$f":"別添!F15","v":0},null,null,null,null,"人"]
[null,null,2,null,"対象者のうち、退職者数",null,null,null,null,null,null,null,null,null,null,null,null,null,null,null,null,null,null,null,null,null,null,null,{"$f":"別添!G15","v":0},null,null,null,null,"人"]
[null,null,3,null,"対象者合計",null,null,null,null,null,null,null,null,null,null,null,null,null,null,null,null,null,null,null,null,null,null,null,{"$f":"別添!H15","v":0},null,null,null,null,"人"]
[null,null,4,null,"慰労金支給額",null,null,null,null,null,null,null,null,null,null,null,null,null,null,null,null,null,null,null,null,null,null,null,{"$f":"別添!I15","v":0},null,null,null,null,"円"]
[null,null,5,null,"職員口座への振込手数料",null,null,null,null,null,null,null,null,null,null,null,null,null,null,null,null,null,null,null,null,null,null,null,{"$f":"別添!J15","v":0},null,null,null,null,"円"]
[]
[null,"（添付書類）"]
[null,"１　（様式１１）事業所・施設別実績額一覧"]
[null,"２　（様式１２）慰労金受給職員表"]
[null,"３　 慰労金を支給した職員の受領書（様式7）の写し"]
[null,"４　 従事者への慰労金交付の際の振込手数料を証明する書類（法人単位）"]
[]
[null,null,null,null,null,null,null,null,null,null,null,null,null,null,null,null,null,null,null,"【報告内容に関する連絡先】"]
[null,null,"受付欄（記入不要）"]
[null,null,null,null,null,null,null,null,null,null,null,null,null,null,null,null,null,null,null,null," 申請法人住所",null,null,null,null,null,null,null,"〒"]
[]
[null,null,null,null,null,null,null,null,null,null,null,null,null,null,null,null,null,null,null,null," 部署名"]
[null,null,null,null,null,null,null,null,null,null,null,null,null,null,null,null,null,null,null,null," 担当者氏名"]
[null,null,null,null,null,null,null,null,null,null,null,null,null,null,null,null,null,null,null,null," 連絡先",null,null,null,"電話番号"]
[null,null,null,null,null,null,null,null,null,null,null,null,null,null,null,null,null,null,null,null,null,null,null,null,"e-mail"]

{"sheet":"別添","index":1,"n_rows":18,"n_cols":11,"rows_kept":18,"cut":false,"hidden":false,"merged":[[2,5,2,10],[2,3,3,3],[2,0,3,0],[2,1,3,1],[2,2,3,2],[2,4,3,4]]}
["（様式１１）事業所・施設別実績額一覧      ※この表は法人単位で作成してください（各事業所・施設ごとの数値は、様式１２の合計と一致すること）。"]
[]
["No.","事業所・施設名","施設区分","電話番号","住所","補助実績額（円）"]
[null,null,null,null,null,"現職者(人）","退職者数(人）","対象者合計(人）","慰労金合計（円）","口座振り込み手数料","慰労金＋手数料"]
[1,null,null,null,null,null,null,{"$f":"SUM(F5:G5)","v":0},{"$f":"H5*50000","v":0},null,{"$f":"SUM(I5:J5)","v":0}]
[2,null,null,null,null,null,null,{"$f":"SUM(F6:G6)","v":0},{"$f":"H6*50000","v":0},null,{"$f":"SUM(I6:J6)","v":0}]
[3,null,null,null,null,null,null,0,0,null,0]
[4,null,null,null,null,null,null,0,0,null,0]
[5,null,null,null,null,null,null,0,0,null,0]
[6,null,null,null,null,null,null,0,0,null,0]
[7,null,null,null,null,null,null,0,0,null,0]
[8,null,null,null,null,null,null,0,0,null,0]
[9,null,null,null,null,null,null,0,0,null,0]
[10,null,null,null,null,null,null,0,0,null,0]
[null,null,null,null,"合計",{"$f":"SUM(F5:F14)","v":0},{"$f":"SUM(G5:G14)","v":0},0,0,{"$f":"SUM(J5:J14)","v":0},{"$f":"SUM(K5:K14)","v":0}]
[]
["（注）行が不足する場合には適宜行を追加して差し支えないが、列の挿入は絶対に行わないこと。"]
[null,"　"]

{"sheet":"職員表","index":2,"n_rows":88,"n_cols":17,"rows_kept":88,"cut":false,"hidden":false,"merged":[[3,13,3,16],[3,0,4,0],[3,6,4,6],[3,11,4,11],[3,1,4,1],[3,2,4,2],[3,3,4,3],[3,9,3,10],[3,7,3,8],[3,12,4,12]]}
["（様式１２）慰労金受給職員表　　　※この表は事業所・施設単位で作成してください。複数の事業所・施設がある場合はシートをコピーし作成してください。"]
[]
[]
[null,"氏名（漢字）","氏名（全角カナ）","生年月日（西暦）",null,null,"本人の住所","主たる勤務先",null,"分類",null,"慰労金\n(円)","口座振り込み手数料\n（円）","確認事項"]
[null,null,null,null,"（確認用）","（確認用）",null,"事業所・施設の名称","勤務先での職種","施設区分","他の施設等との期間通算がある場合その施設名",null,null,"委任状の有無","他法人での慰労金の申請の有無","業務委託による\n従事者","重複\n申請者\n確認用"]
[1,null,null,null,{"$f":"B6&C6&D6","v":""},{"$f":"IF(E6=\"\",\"\",COUNTIF($E$6:$E$86,E6))","v":""},null,null,null,null,null,null,null,null,null,null,{"$f":"IF(F6>=2,\"\",\"可\")","v":""}]
[{"$f":"A6+1","v":2},null,null,null,{"$f":"B7&C7&D7","v":""},"",null,null,null,null,null,null,null,null,null,null,""]
[{"$f":"A7+1","v":3},null,null,null,"","",null,null,null,null,null,null,null,null,null,null,""]
[4,null,null,null,"","",null,null,null,null,null,null,null,null,null,null,""]
[5,null,null,null,"","",null,null,null,null,null,null,null,null,null,null,""]
[6,null,null,null,"","",null,null,null,null,null,null,null,null,null,null,""]
[7,null,null,null,"","",null,null,null,null,null,null,null,null,null,null,""]
[8,null,null,null,"","",null,null,null,null,null,null,null,null,null,null,""]
[9,null,null,null,"","",null,null,null,null,null,null,null,null,null,null,""]
[10,null,null,null,"","",null,null,null,null,null,null,null,null,null,null,""]
[11,null,null,null,"","",null,null,null,null,null,null,null,null,null,null,""]
[12,null,null,null,"","",null,null,null,null,null,null,null,null,null,null,""]
[13,null,null,null,"","",null,null,null,null,null,null,null,null,null,null,""]
[14,null,null,null,"","",null,null,null,null,null,null,null,null,null,null,""]
[15,null,null,null,"","",null,null,null,null,null,null,null,null,null,null,""]
[16,null,null,null,"","",null,null,null,null,null,null,null,null,null,null,""]
[17,null,null,null,"","",null,null,null,null,null,null,null,null,null,null,""]
[18,null,null,null,"","",null,null,null,null,null,null,null,null,null,null,""]
[19,null,null,null,"","",null,null,null,null,null,null,null,null,null,null,""]
[20,null,null,null,"","",null,null,null,null,null,null,null,null,null,null,""]
[21,null,null,null,"","",null,null,null,null,null,null,null,null,null,null,""]
[22,null,null,null,"","",null,null,null,null,null,null,null,null,null,null,""]
[23,null,null,null,"","",null,null,null,null,null,null,null,null,null,null,""]
[24,null,null,null,"","",null,null,null,null,null,null,null,null,null,null,""]
[25,null,null,null,"","",null,null,null,null,null,null,null,null,null,null,""]
[26,null,null,null,"","",null,null,null,null,null,null,null,null,null,null,""]
[27,null,null,null,"","",null,null,null,null,null,null,null,null,null,null,""]
[28,null,null,null,"","",null,null,null,null,null,null,null,null,null,null,""]
[29,null,null,null,"","",null,null,null,null,null,null,null,null,null,null,""]
[30,null,null,null,"","",null,null,null,null,null,null,null,null,null,null,""]
[31,null,null,null,"","",null,null,null,null,null,null,null,null,null,null,""]
[32,null,null,null,"","",null,null,null,null,null,null,null,null,null,null,""]
[33,null,null,null,"","",null,null,null,null,null,null,null,null,null,null,""]
[34,null,null,null,"","",null,null,null,null,null,null,null,null,null,null,""]
[35,null,null,null,"","",null,null,null,null,null,null,null,null,null,null,""]
[36,null,null,null,"","",null,null,null,null,null,null,null,null,null,null,""]
[37,null,null,null,"","",null,null,null,null,null,null,null,null,null,null,""]
[38,null,null,null,"","",null,null,null,null,null,null,null,null,null,null,""]
[39,null,null,null,"","",null,null,null,null,null,null,null,null,null,null,""]
[40,null,null,null,"","",null,null,null,null,null,null,null,null,null,null,""]
[41,null,null,null,"","",null,null,null,null,null,null,null,null,null,null,""]
[42,null,null,null,"","",null,null,null,null,null,null,null,null,null,null,""]
[43,null,null,null,"","",null,null,null,null,null,null,null,null,null,null,""]
[44]
[45]
[46]
[47]
[48]
[49]
[50]
[51]
[52]
[53]
[54]
[55]
[56]
[57]
[58,null,null,null,"",{"$f":"IF(E63=\"\",\"\",COUNTIF($E$6:$E$86,E63))","v":""},null,null,null,null,null,null,null,null,null,null,{"$f":"IF(F63>=2,\"\",\"可\")","v":""}]
[59,null,null,null,"","",null,null,null,null,null,null,null,null,null,null,""]
[60,null,null,null,"","",null,null,null,null,null,null,null,null,null,null,""]
[61,null,null,null,"","",null,null,null,null,null,null,null,null,null,null,""]
[62,null,null,null,"","",null,null,null,null,null,null,null,null,null,null,""]
[63,null,null,null,"","",null,null,null,null,null,null,null,null,null,null,""]
[64]
[65]
[66]
[67]
[68]
[69]
[70]
[71]
[72]
[73]
[74]
[75,null,null,null,"",{"$f":"IF(E80=\"\",\"\",COUNTIF($E$6:$E$86,E80))","v":""},null,null,null,null,null,null,null,null,null,null,{"$f":"IF(F80>=2,\"\",\"可\")","v":""}]
[76,null,null,null,"","",null,null,null,null,null,null,null,null,null,null,""]
[77,null,null,null,"","",null,null,null,null,null,null,null,null,null,null,""]
[78,null,null,null,"","",null,null,null,null,null,null,null,null,null,null,""]
[79,null,null,null,"","",null,null,null,null,null,null,null,null,null,null,""]
[80,null,null,null,"","",null,null,null,null,null,null,null,null,null,null,""]
[81,null,null,null,"","",null,null,null,null,null,null,null,null,null,null,""]
[null,"合計",null,null,null,null,null,null,null,null,null,{"$f":"SUM(L6:L86)","v":0},{"$f":"SUM(M6:M86)","v":0}]
["（注）行が不足する場合には適宜行を追加して差し支えないが、列の挿入は絶対に行わないこと。"]

{"sheet":"実績報告書 (記載例)","index":3,"n_rows":38,"n_cols":39,"rows_kept":38,"cut":false,"hidden":false,"merged":[[36,20,37,22],[36,24,36,27],[36,28,36,37],[37,24,37,27],[37,28,37,37],[35,20,35,26],[35,28,35,37],[21,4,21,27],[21,28,21,32],[22,4,22,27],[22,28,22,32],[30,19,31,29],[31,2,31,14],[32,20,33,27],[32,29,32,37],[33,28,33,37],[34,20,34,26],[34,28,34,37],[18,4,18,27],[18,28,18,32],[19,4,19,27],[19,28,19,32],[20,4,20,27],[20,28,20,32],[17,4,17,22],[2,29,2,30],[2,32,2,33],[2,35,2,36],[4,0,4,9],[6,22,6,36],[7,22,7,36],[8,22,8,36],[10,0,10,38],[12,1,12,37],[15,1,15,9],[15,10,15,17]]}
[null,null,null,null,null,null,null,null,null,null,null,null,null,null,null,null,null,null,null,null,null,null,null,null,null,null,null,null,null,null,null,null,null,null,null,null,null,null,"（様式１０）"]
[]
[null,null,null,null,null,null,null,null,null,null,null,null,null,null,null,null,null,null,null,null,null,null,null,null,null,null,null,null,"　　令和",2,null,"年",12,null,"月",25,null,"日"]
[]
["福井県知事　杉本　達治",null,null,null,null,null,null,null,null,null,"様"]
[]
[null,null,null,null,null,null,null,null,null,null,null,null,null,null,null,null,null,null,null,null,null,"（所在地）","福井市大手丁目〇〇―〇"]
[null,null,null,null,null,null,null,null,null,null,null,null,null,null,null,null,null,null,null,null,null,"（法人名）","社会福祉法人日本海"]
[null,null,null,null,null,null,null,null,null,null,null,null,null,null,null,null,null,null,null,null,null,"（役職・代表者名）","理事長　福田　福夫",null,null,null,null,null,null,null,null,null,null,null,null,null,null,"印"]
[]
["令和２年度福井県新型コロナウイルス感染症緊急包括支援事業補助金\n（児童福祉施設等従事者への慰労金支給事業）実績報告書"]
[]
[null,"　令和２年１２月１０日付け福井県指令 子第９９９号で交付決定を受けた令和２年度福井県新型コロナウイルス感染症緊急包括支援事業（児童福祉施設等従事者への慰労金支給事業）が完了したので、関係書類を添えて、下記のとおり報告します。"]
[]
[]
[null,"　　実　績　額　：　",null,null,null,null,null,null,null,null,{"$f":"'別添 (記載例)'!K15","v":908330},null,null,null,null,null,null,null,"円"]
[]
[null,"（内訳）"]
[null,null,1,null,"対象者のうち、現職者数",null,null,null,null,null,null,null,null,null,null,null,null,null,null,null,null,null,null,null,null,null,null,null,{"$f":"'別添 (記載例)'!F15","v":16},null,null,null,null,"人"]
[null,null,2,null,"対象者のうち、退職者数",null,null,null,null,null,null,null,null,null,null,null,null,null,null,null,null,null,null,null,null,null,null,null,{"$f":"'別添 (記載例)'!G15","v":2},null,null,null,null,"人"]
[null,null,3,null,"対象者合計",null,null,null,null,null,null,null,null,null,null,null,null,null,null,null,null,null,null,null,null,null,null,null,{"$f":"別添!H15","v":0},null,null,null,null,"人"]
[null,null,4,null,"慰労金支給額",null,null,null,null,null,null,null,null,null,null,null,null,null,null,null,null,null,null,null,null,null,null,null,{"$f":"'別添 (記載例)'!I15","v":900000},null,null,null,null,"円"]
[null,null,5,null,"職員口座への振込手数料",null,null,null,null,null,null,null,null,null,null,null,null,null,null,null,null,null,null,null,null,null,null,null,{"$f":"'別添 (記載例)'!J15","v":8330},null,null,null,null,"円"]
[]
[null,"（添付書類）"]
[null,"１　（様式１１）事業所・施設別実績額一覧"]
[null,"２　（様式１２）慰労金受給職員表"]
[null,"３　 慰労金を支給した職員の受領書（様式7）の写し"]
[null,"４　 従事者への慰労金交付の際の振込手数料を証明する書類（法人単位）"]
[]
[null,null,null,null,null,null,null,null,null,null,null,null,null,null,null,null,null,null,null,"【報告内容に関する連絡先】"]
[null,null,"受付欄（記入不要）"]
[null,null,null,null,null,null,null,null,null,null,null,null,null,null,null,null,null,null,null,null," 申請法人住所",null,null,null,null,null,null,null,"〒"]
[]
[null,null,null,null,null,null,null,null,null,null,null,null,null,null,null,null,null,null,null,null," 部署名"]
[null,null,null,null,null,null,null,null,null,null,null,null,null,null,null,null,null,null,null,null," 担当者氏名"]
[null,null,null,null,null,null,null,null,null,null,null,null,null,null,null,null,null,null,null,null," 連絡先",null,null,null,"電話番号"]
[null,null,null,null,null,null,null,null,null,null,null,null,null,null,null,null,null,null,null,null,null,null,null,null,"e-mail"]

{"sheet":"別添 (記載例)","index":4,"n_rows":18,"n_cols":11,"rows_kept":18,"cut":false,"hidden":false,"merged":[[2,5,2,10],[2,0,3,0],[2,1,3,1],[2,2,3,2],[2,3,3,3],[2,4,3,4]]}
["（様式１１）事業所・施設別実績額一覧      ※この表は法人単位で作成してください（各事業所・施設ごとの数値は、様式１２の合計と一致すること）。"]
[]
["No.","事業所・施設名","施設区分","電話番号","住所","補助実績額（円）"]
[null,null,null,null,null,"現職者(人）","退職者数(人）","対象者合計(人）","慰労金合計（円）","口座振り込み手数料","慰労金＋手数料"]
[1,"丹南保育園","認可保育所","0778-99-9999","越前市〇〇町1-1",8,1,{"$f":"SUM(F5:G5)","v":9},{"$f":"H5*50000","v":450000},3430,{"$f":"SUM(I5:J5)","v":453430}]
[2,"二州こども園","認定こども園","0770-99-9999","美浜町〇〇1-2",6,0,{"$f":"SUM(F6:G6)","v":6},{"$f":"H6*50000","v":300000},3300,{"$f":"SUM(I6:J6)","v":303300}]
[3,"奥越児童クラブ","放課後児童クラブ","0779-99-9999","勝山市〇〇町1-3",2,1,3,150000,1600,151600]
[4,null,null,null,null,null,null,{"$f":"SUM(F8:G8)","v":0},{"$f":"H8*50000","v":0},null,{"$f":"SUM(I8:J8)","v":0}]
[5,null,null,null,null,null,null,0,0,null,0]
[6,null,null,null,null,null,null,0,0,null,0]
[7,null,null,null,null,null,null,0,0,null,0]
[8,null,null,null,null,null,null,0,0,null,0]
[9,null,null,null,null,null,null,0,0,null,0]
[10,null,null,null,null,null,null,0,0,null,0]
[null,null,null,null,"合計",{"$f":"SUM(F5:F14)","v":16},{"$f":"SUM(G5:G14)","v":2},18,900000,8330,908330]
[]
["（注）行が不足する場合には適宜行を追加して差し支えないが、列の挿入は絶対に行わないこと。"]
[null,"　"]

{"sheet":"職員表 （記載例)","index":5,"n_rows":88,"n_cols":17,"rows_kept":88,"cut":false,"hidden":false,"merged":[[3,9,3,10],[3,11,4,11],[3,12,4,12],[3,13,3,16],[3,0,4,0],[3,1,4,1],[3,2,4,2],[3,3,4,3],[3,6,4,6],[3,7,3,8]]}
["（様式１２）慰労金受給職員表　　　※この表は事業所・施設単位で作成してください。複数の事業所・施設がある場合はシートをコピーし作成してください。"]
[]
[]
[null,"氏名（漢字）","氏名（全角カナ）","生年月日（西暦）",null,null,"本人の住所","主たる勤務先",null,"分類",null,"慰労金\n(円)","口座振り込み手数料\n（円）","確認事項"]
[null,null,null,null,"（確認用）","（確認用）",null,"事業所・施設の名称","勤務先での職種","施設区分","他の施設等との期間通算がある場合その施設名",null,null,"委任状の有無","他法人での慰労金の申請の有無","業務委託による\n従事者","重複\n申請者\n確認用"]
[1,"〇〇　〇〇","〇〇〇〇　〇〇","1978-01-01",null,null,"〇〇市〇〇１丁目1-1","丹南保育園","園長","認可保育所",null,50000,330,"あり","なし",null,{"$f":"IF(F6>=2,\"\",\"可\")","v":"可"}]
[{"$f":"A6+1","v":2},"〇〇　〇〇","〇〇〇〇　〇〇","1999-06-06",null,null,"〇〇町〇〇9-9-8","丹南保育園","保育士","認可保育所",null,50000,560,"あり","なし",null,"可"]
[{"$f":"A7+1","v":3},"〇〇　〇〇","〇〇〇〇　〇〇","1988-02-06",null,null,"〇〇市〇〇４丁目2","丹南保育園","保育士","認可保育所",null,50000,330,"あり","なし",null,"可"]
[4,"〇〇　〇〇","〇〇〇〇　〇〇","2002-05-03",null,null,"〇〇市〇〇１丁目1-4","丹南保育園","保育士","認可保育所","二州こども園",50000,560,"あり","なし",null,"可"]
[5,"〇〇　〇〇","〇〇〇〇　〇〇","2003-02-25",null,null,"〇〇市〇〇２丁目1-5","丹南保育園","保育士","認可保育所",null,50000,330,"あり","なし",null,"可"]
[6,"〇〇　〇〇","〇〇〇〇　〇〇","1988-10-10",null,null,"〇〇町〇〇1-6","丹南保育園","保育士","認可保育所",null,50000,330,"あり","なし",null,"可"]
[7,"〇〇　〇〇","〇〇〇〇　〇〇","2004-05-03",null,null,"〇〇市〇〇３丁目1-7","丹南保育園","保育士","認可保育所",null,50000,330,"あり","なし",null,"可"]
[8,"〇〇　〇〇","〇〇〇〇　〇〇","1990-01-08",null,null,"〇〇市〇〇１丁目1-8","丹南保育園","調理員","認可保育所",null,50000,330,"あり","なし",null,"可"]
[9,"〇〇　〇〇","〇〇〇〇　〇〇","2000-01-09",null,null,"〇〇市〇〇２丁目1-9","丹南保育園","調理員","認可保育所",null,50000,330,"あり","なし","該当","可"]
[10,null,null,null,{"$f":"B15&C15&D15","v":""},{"$f":"IF(E15=\"\",\"\",COUNTIF($E$6:$E$86,E15))","v":""},null,null,null,null,null,null,null,null,null,null,{"$f":"IF(F15>=2,\"\",\"可\")","v":""}]
[11,null,null,null,"","",null,null,null,null,null,null,null,null,null,null,""]
[12,null,null,null,"","",null,null,null,null,null,null,null,null,null,null,""]
[13,null,null,null,"","",null,null,null,null,null,null,null,null,null,null,""]
[14,null,null,null,"","",null,null,null,null,null,null,null,null,null,null,""]
[15,null,null,null,"","",null,null,null,null,null,null,null,null,null,null,""]
[16,null,null,null,"","",null,null,null,null,null,null,null,null,null,null,""]
[17,null,null,null,"","",null,null,null,null,null,null,null,null,null,null,""]
[18,null,null,null,"","",null,null,null,null,null,null,null,null,null,null,""]
[19,null,null,null,"","",null,null,null,null,null,null,null,null,null,null,""]
[20,null,null,null,"","",null,null,null,null,null,null,null,null,null,null,""]
[21,null,null,null,"","",null,null,null,null,null,null,null,null,null,null,""]
[22,null,null,null,"","",null,null,null,null,null,null,null,null,null,null,""]
[23,null,null,null,"","",null,null,null,null,null,null,null,null,null,null,""]
[24,null,null,null,"","",null,null,null,null,null,null,null,null,null,null,""]
[25,null,null,null,"","",null,null,null,null,null,null,null,null,null,null,""]
[26,null,null,null,"","",null,null,null,null,null,null,null,null,null,null,""]
[27,null,null,null,"","",null,null,null,null,null,null,null,null,null,null,""]
[28,null,null,null,"","",null,null,null,null,null,null,null,null,null,null,""]
[29,null,null,null,"","",null,null,null,null,null,null,null,null,null,null,""]
[30,null,null,null,"","",null,null,null,null,null,null,null,null,null,null,""]
[31,null,null,null,"","",null,null,null,null,null,null,null,null,null,null,""]
[32,null,null,null,"","",null,null,null,null,null,null,null,null,null,null,""]
[33,null,null,null,"","",null,null,null,null,null,null,null,null,null,null,""]
[34,null,null,null,"","",null,null,null,null,null,null,null,null,null,null,""]
[35,null,null,null,"","",null,null,null,null,null,null,null,null,null,null,""]
[36,null,null,null,"","",null,null,null,null,null,null,null,null,null,null,""]
[37,null,null,null,"","",null,null,null,null,null,null,null,null,null,null,""]
[38,null,null,null,"","",null,null,null,null,null,null,null,null,null,null,""]
[39,null,null,null,"","",null,null,null,null,null,null,null,null,null,null,""]
[40,null,null,null,"","",null,null,null,null,null,null,null,null,null,null,""]
[41,null,null,null,"","",null,null,null,null,null,null,null,null,null,null,""]
[42,null,null,null,"","",null,null,null,null,null,null,null,null,null,null,""]
[43,null,null,null,"","",null,null,null,null,null,null,null,null,null,null,""]
[44]
[45]
[46]
[47]
[48]
[49]
[50]
[51]
[52]
[53]
[54]
[55]
[56]
[57]
[58,null,null,null,"",{"$f":"IF(E63=\"\",\"\",COUNTIF($E$6:$E$86,E63))","v":""},null,null,null,null,null,null,null,null,null,null,{"$f":"IF(F63>=2,\"\",\"可\")","v":""}]
[59,null,null,null,"","",null,null,null,null,null,null,null,null,null,null,""]
[60,null,null,null,"","",null,null,null,null,null,null,null,null,null,null,""]
[61,null,null,null,"","",null,null,null,null,null,null,null,null,null,null,""]
[62,null,null,null,"","",null,null,null,null,null,null,null,null,null,null,""]
[63,null,null,null,"","",null,null,null,null,null,null,null,null,null,null,""]
[64]
[65]
[66]
[{"$f":"A71+1","v":67}]
[68]
[69]
[70]
[71]
[72]
[73]
[74]
[75,null,null,null,"",{"$f":"IF(E80=\"\",\"\",COUNTIF($E$6:$E$86,E80))","v":""},null,null,null,null,null,null,null,null,null,null,{"$f":"IF(F80>=2,\"\",\"可\")","v":""}]
[76,null,null,null,"","",null,null,null,null,null,null,null,null,null,null,""]
[77,null,null,null,"","",null,null,null,null,null,null,null,null,null,null,""]
[78,null,null,null,"","",null,null,null,null,null,null,null,null,null,null,""]
[79,null,null,null,"","",null,null,null,null,null,null,null,null,null,null,""]
[80,null,null,null,"","",null,null,null,null,null,null,null,null,null,null,""]
[81,null,null,null,"","",null,null,null,null,null,null,null,null,null,null,""]
[null,"合計",null,null,null,null,null,null,null,null,null,{"$f":"SUM(L6:L86)","v":450000},{"$f":"SUM(M6:M86)","v":3430}]
["（注）行が不足する場合には適宜行を追加して差し支えないが、列の挿入は絶対に行わないこと。"]

{"sheet":"計算用","index":6,"n_rows":115,"n_cols":12,"rows_kept":115,"cut":false,"hidden":true,"merged":[]}
[null,"（１）①　",null,null,null,"（２）②",null,null,null,null,null,"※本シートは絶対に編集しないこと。"]
[null,"共通",null,"単価","多機能型居室","共通"]
["療養介護",2374,"/事業所",null,null,200,"/事業所"]
["生活介護",757,"/事業所",null,null,200,"/事業所"]
["自立訓練（機能訓練）",346,"/事業所",null,null,200,"/事業所"]
["自立訓練（生活訓練）",273,"/事業所",null,null,200,"/事業所"]
["宿泊型自立訓練",273,"/事業所",null,3000,200,"/事業所"]
["就労移行支援",265,"/事業所",null,null,200,"/事業所"]
["就労移行支援（養成施設）",265,"/事業所",null,null,200,"/事業所"]
["就労継続支援Ａ型",335,"/事業所",null,null,200,"/事業所"]
["就労継続支援Ｂ型",353,"/事業所",null,null,200,"/事業所"]
["就労定着支援",52,"/事業所",null,null,200,"/事業所"]
["自立生活援助",27,"/事業所",null,null,200,"/事業所"]
["児童発達支援",380,"/事業所",null,null,200,"/事業所"]
["医療型児童発達支援",240,"/事業所",null,null,200,"/事業所"]
["放課後等デイサービス",360,"/事業所",null,null,200,"/事業所"]
["短期入所",204,"/事業所",null,3000,200,"/事業所"]
["施設入所支援",1215,"/施設",null,3000]
["共同生活援助（介護サービス包括型）",402,"/事業所",null,3000]
["共同生活援助（日中サービス支援型）",358,"/事業所",null,3000]
["共同生活援助（外部サービス利用型）",180,"/事業所",null,3000]
["福祉型障害児入所施設",1182,"/施設"]
["医療型障害児入所施設",635,"/施設"]
["居宅介護",115,"/事業所",null,null,200,"/事業所"]
["重度訪問介護",188,"/事業所",null,null,200,"/事業所"]
["同行援護",65,"/事業所",null,null,200,"/事業所"]
["行動援護",115,"/事業所",null,null,200,"/事業所"]
["居宅訪問型児童発達支援",46,"/事業所",null,null,200,"/事業所"]
["保育所等訪問支援",38,"/事業所",null,null,200,"/事業所"]
["計画相談支援",60,"/事業所",null,null,200,"/事業所"]
["地域移行支援",44,"/事業所",null,null,200,"/事業所"]
["地域定着支援",46,"/事業所"]
["障害児相談支援",44,"/事業所",null,null,200,"/事業所"]
["重度障害者包括支援"]
["地域活動支援センター"]
["日中一時支援"]
["盲人ホーム"]
["福祉ホーム"]
["移動支援事業"]
["訪問入浴サービス"]
["障害者相談支援事業"]
["基幹相談支援"]
["盲ろう者向け通訳・介助員派遣事業"]
[]
["①"]
["②"]
["③"]
["④"]
[]
["施設区分"]
["陽性者(濃厚接触者)発生施設","訪問系で陽性者等に1日以上対応又は訪問系以外で1日以上勤務","訪問系で陽性者等への対応はないが対象期間に10日以上勤務","対象期間の勤務が9日以下"]
["その他の施設","対象期間に10日以上勤務","対象期間の勤務が9日以下"]
[]
[]
["慰労金単価"]
[{"$f":"A51&B51","v":"陽性者(濃厚接触者)発生施設訪問系で陽性者等に1日以上対応又は訪問系以外で1日以上勤務"},20]
[{"$f":"A51&C51","v":"陽性者(濃厚接触者)発生施設訪問系で陽性者等への対応はないが対象期間に10日以上勤務"},5]
[{"$f":"A51&D51","v":"陽性者(濃厚接触者)発生施設対象期間の勤務が9日以下"},0]
[{"$f":"A52&B52","v":"その他の施設対象期間に10日以上勤務"},5]
[{"$f":"A52&C52","v":"その他の施設対象期間の勤務が9日以下"},0]
[]
[]
[]
[]
["なし"]
["あり"]
[]
[]
["北海道 "]
["青森県 "]
["岩手県 "]
["宮城県 "]
["秋田県 "]
["山形県 "]
["福島県 "]
["茨城県 "]
["栃木県 "]
["群馬県 "]
["埼玉県 "]
["千葉県 "]
["東京都 "]
["神奈川県 "]
["新潟県 "]
["富山県 "]
["石川県 "]
["福井県 "]
["山梨県 "]
["長野県 "]
["岐阜県"]
["静岡県"]
["愛知県"]
["三重県"]
["滋賀県"]
["京都府"]
["大阪府"]
["兵庫県"]
["奈良県"]
["和歌山県"]
["鳥取県"]
["島根県"]
["岡山県"]
["広島県"]
["山口県"]
["徳島県"]
["香川県"]
["愛媛県"]
["高知県"]
["福岡県"]
["佐賀県"]
["長崎県"]
["熊本県"]
["大分県"]
["宮崎県"]
["鹿児島県"]
["沖縄県"]